bitfinex/quotes_ETHUSD_20251224
["timestamp","ask_amount","ask_price","bid_price","bid_amount"]
[1766589206796,0.9622,2917.0,2916.5,3.44229389]
[1766589207085,0.9622,2917.0,2916.5,0.0135577]
[1766589207670,0.9622,2917.0,2916.5,0.002]
[1766589208598,1.00505371,2916.9,2916.5,0.002]
[1766589208804,1.49227502,2916.9,2916.5,0.002]
[1766589208973,1.00505371,2916.9,2916.5,0.002]
[1766589210172,1.00505371,2916.9,2916.3,0.01156486]
[1766589210173,1.00505371,2916.9,2916.3,3.44056709]
[1766589210769,1.00505371,2916.9,2916.3,0.01156486]
[1766589210964,0.9622,2916.8,2915.9,3.42944571]
[1766589211163,0.9622,2916.6,2916.0,0.829]
[1766589211367,0.9622,2916.6,2916.1,0.829]
[1766589211565,0.9622,2916.6,2916.2,0.01157455]
[1766589212081,0.9622,2916.6,2916.1,4.25821112]
[1766589212291,0.9622,2916.6,2915.3,0.002]
[1766589212488,1.00545959,2916.5,2915.7,0.829]
[1766589212688,0.9626,2916.3,2915.6,0.831]
[1766589212870,0.042864,2916.2,2915.7,0.01158631]
[1766589213260,1.005464,2916.2,2915.7,0.01158631]
[1766589213871,1.005464,2916.2,2916.0,0.002]
[1766589214066,1.18463913,2916.2,2916.0,0.002]
[1766589214688,1.14177513,2916.2,2916.0,0.002]
[1766589214994,0.9626,2916.5,2916.0,0.002]
[1766589215161,1.00546106,2916.4,2916.0,0.002]
[1766589215362,1.00546106,2916.4,2915.7,0.01157908]
[1766589215562,1.00546106,2916.4,2915.6,0.831]
[1766589215863,1.00546106,2916.4,2915.6,0.002]
[1766589215864,0.9626,2916.4,2915.6,0.002]
[1766589216291,0.9626,2916.2,2915.6,0.002]
[1766589216593,1.005464,2916.2,2915.6,0.002]
[1766589217805,0.9988,2916.5,2915.7,1.0449]
[1766589217963,0.9988,2916.5,2915.8,0.2149]
[1766589218166,0.04286106,2916.4,2915.8,0.2149]
[1766589218675,3.47176501,2916.4,2915.9,0.0115821]
[1766589218873,4.47056501,2916.4,2915.8,0.0115821]
[1766589219596,0.9988,2916.3,2915.8,0.0115821]
[1766589219906,0.9988,2916.1,2915.4,0.002]
[1766589220089,0.9988,2915.9,2915.2,0.01159378]
[1766589220262,0.9988,2915.7,2915.1,0.83]
[1766589220467,0.04287282,2915.6,2915.2,0.01160133]
[1766589221903,0.04287282,2915.6,2915.2,3.4418977]
[1766589222062,0.9988,2916.2,2915.3,0.178]
[1766589222267,0.9988,2916.0,2915.4,0.03430061]
[1766589222887,0.9988,2915.8,2915.4,0.03430061]
[1766589223081,3.42936228,2916.0,2915.3,0.002]
[1766589223082,1.03007681,2915.7,2915.3,0.03630178]
[1766589223301,1.03007681,2915.7,2915.3,3.46645579]
[1766589223494,1.03007681,2915.7,2915.3,0.03630178]
[1766589225223,0.9988,2916.3,2915.4,0.1467]
[1766589226219,0.9988,2916.3,2915.5,0.03429943]
[1766589226927,0.9988,2916.1,2915.5,0.03429943]
[1766589227115,0.9988,2916.1,2915.4,0.83]
[1766589227422,0.9988,2916.1,2915.5,0.03429943]
[1766589227615,0.9988,2916.0,2915.5,0.03429943]
[1766589228019,1.03309943,2915.9,2915.3,0.002]
[1766589228518,0.9988,2915.9,2915.3,0.002]
[1766589228816,0.9988,2916.2,2915.5,3.42993969]
[1766589229119,0.03429943,2916.1,2915.6,0.52399222]
[1766589229322,0.001,2916.4,2915.6,0.52399222]
[1766589229493,0.001,2916.4,2915.7,0.1467]
[1766589229819,0.9988,2917.4,2915.9,0.1457]
[1766589230123,1.03309943,2917.3,2916.1,0.1457]
[1766589230420,1.03309943,2917.3,2916.2,0.0342912]
[1766589231002,1.03309943,2917.3,2916.4,7.00346984]
[1766589231314,4.46094728,2917.3,2916.5,0.03428767]
[1766589231627,5.37767889,2917.3,2916.5,0.03428767]
[1766589232123,1.94983104,2917.3,2916.5,0.03428767]
[1766589233393,8.80551452,2917.3,2916.5,0.03428767]
[1766589233594,0.9988,2917.2,2916.5,0.03428767]
[1766589233823,1.03309943,2917.1,2916.5,0.03428767]
[1766589234118,0.9988,2917.0,2916.2,3.42909715]
[1766589234311,1.03309943,2916.9,2916.2,3.42909715]
[1766589234616,1.03309943,2916.9,2916.1,3.42916605]
[1766589234796,1.03309943,2916.9,2916.1,3.85508266]
[1766589234996,1.03309943,2916.9,2916.2,3.42910782]
[1766589235227,1.03309943,2916.9,2916.3,3.42896338]
[1766589235415,1.03309943,2916.9,2916.2,3.42912008]
[1766589236598,1.03309943,2916.9,2916.1,3.85511309]
[1766589239301,0.9988,2916.8,2916.1,3.85511309]
[1766589239527,0.03429943,2916.7,2916.1,3.85514711]
[1766589240030,1.03309943,2916.7,2916.1,3.85514711]
[1766589240230,1.03309943,2916.7,2916.1,7.28438479]
[1766589240527,1.03309943,2916.7,2916.1,3.85514711]
[1766589241011,1.03309943,2916.7,2916.1,7.28438479]
[1766589241627,0.03429943,2916.7,2916.2,0.81143848]
[1766589241827,0.001,2916.9,2916.3,0.03429002]
[1766589242032,0.001,2916.9,2916.3,0.17999002]
[1766589242033,0.03529943,2916.9,2916.3,0.17999002]
[1766589242329,0.99,2916.8,2916.0,3.42931499]
[1766589242530,0.99,2916.6,2916.1,0.03429237]
[1766589242706,0.99,2916.6,2916.0,0.03429355]
[1766589242913,0.99,2916.6,2916.1,3.42923675]
[1766589243112,0.99,2916.6,2916.0,0.03429355]
[1766589243318,0.99,2916.6,2915.9,0.03429472]
[1766589243525,0.99,2916.6,2916.0,3.42933058]
[1766589243724,0.99,2916.4,2915.9,0.03429472]
[1766589243929,0.99,2916.2,2915.5,0.002]
[1766589244118,0.99,2916.0,2915.3,0.03630178]
[1766589244441,0.99,2915.8,2915.3,0.002]
[1766589244649,0.03429943,2915.7,2915.3,0.002]
[1766589245105,0.99,2915.8,2915.3,3.4321501]
[1766589245301,0.99,2915.8,2915.4,0.03430061]
[1766589246723,0.03429943,2915.7,2915.3,0.002]
[1766589246943,0.03429943,2915.7,2915.3,0.03630178]
[1766589247725,0.99,2915.8,2915.3,0.002]
[1766589247915,1.43194244,2915.8,2915.3,0.03630178]
[1766589248648,1.03287135,2915.7,2914.9,0.002]
[1766589248948,1.03287135,2915.7,2914.6,0.002]
[1766589249305,1.03287135,2915.7,2915.4,0.002]
[1766589249511,0.99,2915.5,2914.4,0.002]
[1766589249710,0.99,2915.3,2914.4,3.43323393]
[1766589249944,0.99,2915.1,2914.4,3.43323393]
[1766589250115,0.99,2914.9,2914.4,3.43323393]
[1766589250307,0.99,2914.9,2914.4,0.002]
[1766589250514,0.837,2915.4,2914.4,0.002]
[1766589250515,1.03288458,2914.8,2914.4,0.002]
[1766589250826,1.03288458,2914.8,2914.4,0.01917384]
[1766589252538,1.03288458,2914.8,2914.4,3.45034729]
[1766589252737,0.99,2914.8,2914.4,3.45031809]
[1766589253140,0.99,2914.8,2914.4,0.01917384]
[1766589253943,0.04288164,2915.0,2914.4,0.01917384]
[1766589254255,0.99,2914.9,2914.4,0.01917384]
[1766589254474,0.04288311,2914.9,2914.4,0.01917384]
[1766589254659,0.04288311,2914.9,2914.4,3.45040776]
[1766589254840,0.04288311,2914.9,2914.4,0.01917384]
[1766589255357,0.04288311,2914.9,2914.4,3.45037988]
[1766589255558,0.99,2915.1,2914.4,3.60407988]
[1766589255760,0.0428787,2915.2,2914.5,0.1557]
[1766589255934,0.0428787,2915.2,2914.6,0.01716796]
[1766589256553,1.42099541,2915.2,2914.6,0.01716796]
[1766589256754,1.42099541,2915.2,2914.6,3.44816137]
[1766589256755,0.04288017,2915.1,2914.6,3.44816137]
[1766589256963,0.99,2915.2,2914.6,3.44816137]
[1766589257330,0.837,2915.4,2914.6,7.0328639]
[1766589257537,0.99,2915.5,2914.7,0.1537]
[1766589257751,0.99,2915.5,2914.8,0.1708609]
[1766589258654,0.04287576,2915.4,2914.8,0.1708609]
[1766589259253,1.03287576,2915.4,2914.8,0.0171609]
[1766589259458,1.03287576,2915.4,2914.8,3.44791653]
[1766589259764,1.03287576,2915.4,2914.8,4.21448533]
[1766589260063,1.03287282,2915.6,2914.8,3.60161653]
[1766589260258,1.03287282,2915.6,2914.8,3.44791653]
[1766589260928,1.03287282,2915.6,2914.5,0.1557]
[1766589261153,0.99,2915.4,2914.6,0.831]
[1766589261361,0.99,2915.2,2914.5,0.002]
[1766589261534,0.99,2915.0,2914.4,0.01916914]
[1766589261959,0.99,2914.8,2914.4,0.01916914]
[1766589263147,0.99,2914.8,2914.4,3.45032347]
[1766589263339,0.04287723,2915.3,2914.5,0.2127]
[1766589263551,0.04287576,2915.4,2914.6,0.22986678]
[1766589263935,1.03287576,2915.4,2914.6,0.22986678]
[1766589265160,1.03287576,2915.4,2914.7,3.43088482]
[1766589265355,1.03287576,2915.4,2914.8,0.01716207]
[1766589265931,1.03287576,2915.4,2914.8,0.72632524]
[1766589266169,0.001,2915.6,2914.9,0.24700649]
[1766589266373,0.99,2916.1,2915.0,0.2117]
[1766589266576,0.02572545,2916.0,2915.2,0.2117]
[1766589266778,0.02572545,2916.0,2915.3,0.86530178]
[1766589267376,1.01572545,2916.0,2915.3,4.29541946]
[1766589268078,0.99,2915.9,2915.1,3.43031154]
[1766589268373,0.99,2915.7,2915.0,3.43046292]
[1766589268562,1.01572545,2915.6,2914.9,4.26157461]
[1766589268741,1.01572545,2915.6,2915.0,3.43051032]
[1766589268945,1.01572545,2915.6,2915.0,0.03430531]
[1766589269572,1.01572545,2915.6,2914.9,3.43064411]
[1766589269735,1.01572545,2915.6,2915.0,0.03430531]
[1766589270741,1.01572545,2915.6,2914.9,6.86129353]
[1766589270942,1.01572545,2915.6,2915.0,0.68612935]
[1766589271352,0.9504,2915.5,2914.6,4.47366022]
[1766589271538,0.9504,2915.3,2914.7,3.43088482]
[1766589271993,0.02572545,2915.2,2914.5,3.43307805]
[1766589272174,0.9504,2915.2,2914.6,0.831]
[1766589272339,0.97612545,2915.1,2914.5,3.43307805]
[1766589272541,0.97612545,2915.1,2914.5,4.26407805]
[1766589273165,0.97612545,2915.1,2914.5,0.002]
[1766589274294,0.02572545,2915.4,2914.6,0.2117]
[1766589274499,0.02572545,2915.4,2914.7,0.03430884]
[1766589274872,0.02572545,2915.4,2914.7,0.86530884]
[1766589275073,0.97612545,2915.4,2914.7,0.86530884]
[1766589275372,0.97612545,2915.4,2914.7,4.29618602]
[1766589275570,4.40619485,2915.4,2914.7,0.86530884]
[1766589275870,4.40619485,2915.4,2914.6,3.64260773]
[1766589275871,0.9504,2915.3,2914.6,0.832]
[1766589276077,0.9504,2915.1,2914.7,0.03430884]
[1766589276490,0.9504,2915.1,2914.6,0.03431002]
[1766589276847,0.02572545,2915.3,2914.6,0.03431002]
[1766589277186,0.02572545,2915.3,2914.6,0.46445278]
[1766589277386,0.95532545,2915.4,2914.6,0.46445278]
[1766589277594,0.02572545,2915.3,2914.7,3.4308816]
[1766589277747,0.02572545,2915.3,2914.8,0.03430767]
[1766589278972,0.95532545,2915.3,2914.7,0.03430884]
[1766589279672,0.95532545,2915.3,2914.5,0.002]
[1766589279673,0.9296,2915.2,2914.5,0.002]
[1766589279888,0.02572545,2915.1,2914.6,0.2117]
[1766589280075,0.95532545,2915.4,2914.7,3.4308023]
[1766589280891,0.95532545,2915.4,2914.6,0.2117]
[1766589281388,0.95532545,2915.4,2914.6,4.09056064]
[1766589281989,3.45579136,2915.4,2914.6,4.09056064]
[1766589282184,0.9296,2915.3,2914.6,4.92256064]
[1766589282386,0.02572545,2915.2,2914.7,0.03430884]
[1766589283097,0.95532545,2915.2,2914.7,0.03430884]
[1766589283303,0.95532545,2915.2,2914.5,0.002]
[1766589283504,0.95532545,2915.2,2914.5,3.46742171]
[1766589283669,0.95532545,2915.2,2914.6,3.43098821]
[1766589284003,0.95532545,2915.2,2914.7,0.03430884]
[1766589284202,0.95532545,2915.2,2914.7,3.46518518]
[1766589284392,0.9296,2915.2,2914.7,3.46518518]
[1766589286303,0.9296,2915.2,2914.6,3.43098071]
[1766589286604,0.9296,2915.2,2914.6,4.21823194]
[1766589286898,0.02572545,2915.1,2914.6,4.21823194]
[1766589287066,0.02572545,2915.1,2914.7,0.03430884]
[1766589287534,3.42996378,2915.5,2914.7,7.10774009]
[1766589287535,0.9296,2915.5,2914.7,7.10774009]
[1766589287673,0.9296,2916.1,2914.9,0.2117]
[1766589287871,0.9296,2916.1,2915.1,0.2117]
[1766589288076,0.9296,2916.1,2915.3,0.2117]
[1766589288410,0.9296,2916.1,2915.4,0.03430061]
[1766589288603,0.9296,2916.0,2915.1,3.43035568]
[1766589288809,0.9296,2916.0,2914.9,0.2117]
[1766589288994,0.9296,2916.0,2915.1,0.832]
[1766589289416,0.9296,2916.0,2914.7,3.88]
[1766589289577,0.9296,2916.0,2914.7,3.43080549]
[1766589289778,0.9296,2915.8,2914.8,3.4649739]
[1766589290408,0.9296,2915.8,2914.9,3.43063816]
[1766589290712,0.001,2915.6,2915.0,0.03430531]
[1766589290913,0.43603081,2915.5,2915.0,0.03430531]
[1766589291103,0.43603081,2915.5,2914.9,0.03430649]
[1766589291271,1.36563081,2915.5,2914.9,0.03430649]
[1766589291890,0.9296,2915.4,2914.9,0.03430649]
[1766589292217,0.9296,2915.4,2914.8,3.46507274]
[1766589292382,0.9296,2915.4,2914.8,0.03430767]
[1766589294544,0.9296,2915.4,2914.8,3.46504671]
[1766589297184,0.9296,2915.4,2914.8,0.03430767]
[1766589297383,0.43606055,2915.4,2914.8,0.03430767]
[1766589297583,0.9296,2915.3,2914.8,0.03430767]
[1766589298527,0.9296,2915.3,2914.5,0.002]
[1766589298733,0.9296,2915.2,2914.5,0.002]
[1766589298906,0.9296,2915.2,2914.5,0.0363112]
[1766589299106,1.10646,2915.1,2914.5,0.0363112]
[1766589300106,1.10646,2915.1,2914.5,0.002]
[1766589300710,1.36566055,2915.4,2914.8,4.46509444]
[1766589300911,0.9296,2915.3,2914.7,0.03430884]
[1766589301110,0.9296,2915.3,2914.6,0.833]
[1766589301324,0.9296,2915.3,2914.7,0.03430884]
[1766589301526,0.47957243,2915.2,2914.7,0.03430884]
[1766589303044,4.35979371,2915.3,2914.7,0.03430884]
[1766589303230,0.9093,2915.2,2914.6,0.86731002]
[1766589303417,0.9093,2915.2,2914.6,0.833]
[1766589303619,0.9093,2915.2,2914.7,0.03430884]
[1766589303823,0.9093,2915.2,2914.7,3.46519167]
[1766589304031,3.43091887,2915.6,2914.7,4.70599457]
[1766589304240,0.9093,2915.5,2914.7,4.70599457]
[1766589304750,0.9093,2915.5,2914.7,1.27511174]
[1766589305133,0.9093,2915.5,2914.7,4.91767223]
[1766589305347,0.9093,2915.5,2914.7,3.67686933]
[1766589305942,0.9093,2915.4,2914.6,0.002]
[1766589306144,6.85988928,2915.5,2914.5,0.002]
[1766589306145,0.9093,2915.2,2914.5,0.002]
[1766589306348,0.9093,2915.0,2914.5,0.002]
[1766589307688,0.9093,2914.8,2914.3,0.002]
[1766589307971,0.9093,2914.8,2914.2,0.002]
[1766589307972,0.9093,2914.6,2914.2,0.002]
[1766589308130,0.9093,2914.4,2914.1,0.002]
[1766589308629,0.03431252,2914.9,2914.1,0.2197]
[1766589308630,0.94361252,2914.9,2914.1,0.2197]
[1766589308971,0.43741864,2914.8,2914.3,3.43129086]
[1766589309267,0.9093,2914.9,2914.3,3.43129086]
[1766589309441,0.17483,2915.1,2914.4,0.25201237]
[1766589309627,0.03431252,2915.0,2914.4,0.25201237]
[1766589310264,3.43008385,2915.4,2914.4,0.25201237]
[1766589310265,0.9103,2915.6,2914.4,0.25201237]
[1766589310435,0.001,2915.6,2914.4,0.25201237]
[1766589310631,0.001,2915.6,2914.6,0.2177]
[1766589310857,0.94461252,2915.6,2914.8,0.2177]
[1766589311546,0.94461252,2915.6,2914.9,3.43064942]
[1766589311936,0.94461252,2915.6,2915.0,0.03430531]
[1766589312170,0.9093,2915.5,2914.1,0.254]
[1766589312368,0.9093,2915.5,2914.3,3.43129495]
[1766589312369,0.9093,2915.3,2914.3,3.43129495]
[1766589312567,0.9093,2915.1,2914.4,0.017159]
[1766589312770,0.9093,2914.9,2914.1,0.254]
[1766589312957,0.95218458,2914.8,2914.1,0.002]
[1766589313270,1.13130304,2914.8,2914.1,0.019169]
[1766589313456,1.13130304,2914.8,2914.4,0.002]
[1766589313658,0.9093,2914.7,2914.4,0.002]
[1766589313853,0.95218753,2914.6,2914.4,0.002]
[1766589317254,0.95218753,2914.6,2914.1,0.002]
[1766589317679,0.9093,2914.5,2913.5,0.835]
[1766589317838,0.9093,2914.3,2913.6,0.01718255]
[1766589318175,0.95219341,2914.2,2913.5,6.88375114]
[1766589318374,0.9093,2914.2,2913.6,0.01718609]
[1766589318537,0.839,2914.6,2913.6,0.27318491]
[1766589318743,0.042889,2914.5,2913.8,0.256]
[1766589318956,0.042889,2914.5,2913.9,0.01717725]
[1766589319353,0.9093,2914.4,2913.5,7.12256741]
[1766589319552,0.95219194,2914.3,2913.6,0.85018373]
[1766589319753,0.9093,2914.2,2913.6,0.01718373]
[1766589319951,0.9093,2914.0,2913.5,0.002]
[1766589320475,0.9093,2914.0,2913.5,3.43428227]
[1766589320892,0.9093,2914.0,2913.5,3.43427698]
[1766589321250,0.95219783,2913.9,2913.5,0.002]
[1766589322275,1.43441546,2913.9,2913.5,0.002]
[1766589322481,0.95219783,2913.9,2913.5,0.002]
[1766589322684,0.9093,2915.2,2913.5,0.29232297]
[1766589322878,0.9093,2915.0,2913.7,0.256]
[1766589323077,0.9093,2915.0,2913.6,0.833]
[1766589323078,0.9093,2914.8,2913.8,0.03431944]
[1766589323279,0.9093,2914.6,2913.6,0.0343218]
[1766589323469,0.84,2914.8,2913.5,0.002]
[1766589323470,0.9093,2914.4,2913.5,0.002]
[1766589323666,0.9093,2914.2,2913.5,0.03632297]
[1766589323885,0.9093,2914.0,2913.5,0.03632297]
[1766589324084,0.93501469,2913.9,2913.5,0.002]
[1766589324788,0.02571469,2913.9,2913.5,3.43426952]
[1766589324993,0.9093,2914.2,2913.6,0.0343218]
[1766589324994,0.02571469,2914.1,2913.6,0.0343218]
[1766589325178,0.9093,2914.0,2913.5,0.002]
[1766589325384,0.93501469,2913.9,2913.5,0.002]
[1766589326100,3.45755627,2913.9,2913.5,0.002]
[1766589326300,0.9093,2913.8,2913.5,0.002]
[1766589326467,0.9093,2914.2,2913.5,0.002]
[1766589326664,0.45978785,2914.1,2913.5,0.258]
[1766589326866,0.02571469,2914.1,2913.6,0.0343218]
[1766589327075,0.93501469,2914.3,2913.5,0.258]
[1766589327898,0.93501469,2914.3,2913.5,0.002]
[1766589328198,0.9093,2914.1,2912.9,0.002]
[1766589328500,0.9093,2913.9,2912.9,0.002]
[1766589328698,0.9093,2913.7,2912.9,0.002]
[1766589328867,1.7493,2914.0,2913.1,0.256]
[1766589329067,0.9093,2914.3,2913.3,0.2303]
[1766589329395,0.9093,2914.3,2913.4,0.26462415]
[1766589329574,0.9093,2914.2,2913.4,0.2303]
[1766589330071,0.9093,2914.2,2913.4,3.66260161]
[1766589331098,0.9093,2914.1,2913.1,0.2303]
[1766589331403,0.9093,2914.1,2913.4,3.43232948]
[1766589331590,1.34338008,2914.1,2913.4,3.43232948]
[1766589331791,1.34338008,2914.1,2913.3,3.46680194]
[1766589331983,0.9396,2914.0,2913.3,3.46680194]
[1766589332182,0.9396,2914.0,2913.3,3.69710194]
[1766589332378,4.2713293,2914.4,2913.4,0.2303]
[1766589332672,0.9396,2914.2,2913.4,0.03432415]
[1766589334410,0.84,2914.4,2913.5,6.86459584]
[1766589334625,0.9396,2915.0,2913.6,0.0343218]
[1766589334780,4.37014525,2915.0,2913.7,0.834]
[1766589335107,0.9396,2914.9,2913.8,0.03431944]
[1766589335782,3.4300944,2915.4,2913.8,0.03431944]
[1766589335985,0.9396,2915.2,2913.8,0.03431944]
[1766589336305,3.43102707,2915.5,2914.0,0.09877552]
[1766589336306,0.001,2915.5,2914.0,0.09877552]
[1766589336513,0.001,2915.5,2914.2,10.29442041]
[1766589336668,0.001,2915.5,2914.3,0.03431355]
[1766589336870,0.001,2915.5,2914.4,1.3858983]
[1766589337071,0.9485,2915.4,2914.4,1.3858983]
[1766589337370,0.9485,2915.4,2914.5,0.834]
[1766589337598,0.9485,2915.1,2914.5,0.834]
[1766589337904,0.9485,2915.1,2914.2,0.03431473]
[1766589338089,0.9485,2915.1,2914.1,0.03431591]
[1766589338396,0.9485,2915.1,2914.2,0.834]
[1766589338698,0.9485,2914.9,2914.2,4.26547045]
[1766589338880,0.9485,2914.9,2914.3,0.42997864]
[1766589339408,0.9485,2914.9,2914.2,4.26547045]
[1766589339409,0.9485,2914.9,2914.2,0.834]
[1766589339914,0.9485,2914.9,2914.0,0.03431708]
[1766589340090,0.9485,2914.9,2913.8,0.834]
[1766589340483,0.9485,2914.7,2913.8,0.86831944]
[1766589340701,0.9485,2914.5,2913.3,0.002]
[1766589340901,0.9485,2914.5,2913.6,0.834]
[1766589341715,0.9485,2914.5,2913.6,4.26613373]
[1766589341914,0.9485,2914.5,2913.6,0.834]
[1766589342081,0.17295034,2914.4,2913.6,0.834]
[1766589342283,1.12145034,2914.4,2913.6,0.834]
[1766589342608,4.37979039,2914.4,2913.6,0.834]
[1766589343108,0.9485,2914.4,2913.6,4.30049804]
[1766589345301,3.43116867,2914.5,2913.6,4.30049804]
[1766589346500,0.9485,2914.4,2913.4,3.43230879]
[1766589346822,0.9485,2914.2,2913.5,0.834]
[1766589347112,0.9485,2914.2,2913.5,4.26828337]
[1766589347623,0.9485,2914.2,2913.5,0.836]
[1766589348432,0.9485,2914.2,2913.6,0.834]
[1766589348581,0.9485,2914.2,2913.5,0.002]
[1766589348923,0.9485,2913.9,2913.3,0.002]
[1766589349229,0.9485,2913.9,2913.0,0.836]
[1766589349727,0.85923467,2914.1,2913.4,3.432353]
[1766589349927,0.9485,2914.2,2913.5,0.86832297]
[1766589350124,0.9485,2914.2,2913.5,0.834]
[1766589350304,0.9485,2914.2,2913.6,0.834]
[1766589350503,3.43147776,2914.2,2913.6,0.834]
[1766589350695,0.9485,2914.1,2913.6,0.834]
[1766589351033,0.9485,2914.1,2913.0,0.002]
[1766589351034,0.9485,2914.0,2913.0,0.002]
[1766589352889,0.9485,2913.8,2912.9,0.002]
[1766589355816,0.9485,2913.6,2912.9,0.002]
[1766589356417,0.9485,2913.6,2912.5,3.43341812]
[1766589356741,0.9485,2913.6,2912.6,0.86833358]
[1766589356940,0.9485,2913.4,2912.6,0.834]
[1766589357112,0.9485,2913.4,2912.4,0.002]
[1766589357321,0.9485,2913.4,2912.4,0.836]
[1766589357622,0.9485,2913.4,2912.4,0.002]
[1766589357828,0.9485,2913.2,2912.4,0.002]
[1766589358033,0.9485,2913.0,2912.4,0.002]
[1766589358347,4.38091716,2913.4,2912.4,0.03633594]
[1766589358936,0.9485,2913.3,2912.4,0.03633594]
[1766589360447,0.78126246,2913.5,2912.5,6.86695278]
[1766589360648,0.9485,2913.8,2912.6,0.72466245]
[1766589361564,0.9118,2913.7,2912.7,0.834]
[1766589361764,0.9118,2913.7,2912.8,0.03433122]
[1766589362467,0.9118,2913.7,2912.9,6.8660098]
[1766589362747,0.9118,2913.7,2913.0,0.03432887]
[1766589362922,1.3461809,2913.7,2913.0,0.03432887]
[1766589363247,0.9118,2913.7,2913.0,0.03432887]
[1766589364346,0.001,2914.0,2913.0,0.03432887]
[1766589364519,0.9128,2914.0,2912.7,0.09877552]
[1766589364719,0.9128,2914.0,2913.0,6.8657741]
[1766589365030,0.9128,2914.0,2913.2,0.09877552]
[1766589365468,0.9128,2914.0,2913.3,0.834]
[1766589367141,0.9128,2914.0,2913.3,4.26645545]
[1766589367527,0.9118,2914.3,2913.7,0.09877552]
[1766589367851,0.9118,2915.1,2914.2,0.09877552]
[1766589368027,0.9118,2915.1,2914.3,0.834]
[1766589368226,1.3461142,2915.0,2914.3,0.834]
[1766589368870,0.9118,2914.9,2914.3,0.834]
[1766589369162,0.9118,2914.9,2913.3,3.43252589]
[1766589369344,0.9118,2914.9,2913.6,0.834]
[1766589369650,0.9118,2914.9,2912.6,0.09877552]
[1766589369862,0.9118,2914.7,2912.9,3.43300249]
[1766589370065,0.9118,2914.5,2913.0,3.46718404]
[1766589370235,0.9118,2914.3,2913.0,0.03432887]
[1766589370443,0.9118,2914.1,2913.0,0.834]
[1766589370633,0.9118,2913.9,2913.0,0.834]
[1766589370831,0.9118,2913.6,2913.0,0.834]
[1766589371058,0.03773884,2913.5,2913.0,0.834]
[1766589371256,0.94953884,2913.5,2912.9,4.26698181]
[1766589371463,0.94953884,2913.5,2912.9,0.03433004]
[1766589371637,0.9118,2913.4,2912.8,0.002]
[1766589371953,0.43816012,2913.5,2912.9,0.834]
[1766589371954,0.94953884,2913.3,2912.9,0.834]
[1766589373531,0.03773884,2913.3,2912.9,4.26698439]
[1766589373726,0.9118,2913.6,2912.9,0.834]
[1766589373727,0.03773884,2913.5,2912.9,0.834]
[1766589374059,0.9118,2914.5,2913.0,0.03432887]
[1766589374433,0.9118,2914.5,2913.1,0.09877552]
[1766589374632,0.9118,2914.5,2913.3,0.09877552]
[1766589374860,0.9118,2914.5,2913.5,10.29689376]
[1766589375057,0.001,2914.7,2913.6,1.15084359]
[1766589375248,0.001,2914.7,2913.7,0.09877552]
[1766589375453,0.9118,2914.9,2913.8,0.03431944]
[1766589375640,4.34320426,2915.2,2913.9,0.834]
[1766589375963,0.9118,2915.1,2914.0,0.03431708]
[1766589376134,0.9118,2915.0,2914.0,0.03431708]
[1766589376858,0.9118,2914.8,2913.7,3.43206232]
[1766589377166,0.9118,2914.8,2913.8,0.834]
[1766589377939,0.9118,2914.8,2913.9,0.03431826]
[1766589378138,0.9118,2914.8,2914.0,0.834]
[1766589378139,0.9118,2914.7,2914.0,0.834]
[1766589378468,4.20781846,2915.1,2914.1,0.03431591]
[1766589378673,0.9118,2915.0,2914.1,0.03431591]
[1766589379063,4.34244087,2915.0,2914.1,3.46586629]
[1766589379462,0.9118,2914.9,2914.1,0.03431591]
[1766589379761,0.9118,2914.9,2914.2,0.834]
[1766589380266,1.76684266,2914.9,2914.3,0.834]
[1766589380867,0.9118,2914.8,2914.3,0.834]
[1766589381370,0.9128,2914.8,2914.3,0.834]
[1766589382580,0.9128,2914.8,2914.1,0.03431591]
[1766589382881,0.9128,2914.8,2914.2,4.26542691]
[1766589383378,0.9128,2914.8,2914.3,3.43132933]
[1766589383577,0.9128,2915.2,2914.4,0.03431237]
[1766589383778,0.001,2915.2,2914.4,0.03431237]
[1766589384655,0.9128,2915.5,2914.5,6.86224052]
[1766589384866,0.001,2915.5,2914.6,1.41117867]
[1766589385277,3.43094762,2915.5,2914.6,1.41117867]
[1766589385589,0.001,2915.5,2914.6,1.41117867]
[1766589385956,0.9118,2915.4,2914.6,1.41117867]
[1766589386357,1.34617969,2915.4,2914.6,1.41117867]
[1766589386686,0.9118,2915.5,2914.6,4.84210177]
[1766589387587,0.9118,2915.5,2914.6,8.2731043]
[1766589387889,0.9118,2915.5,2914.6,8.23879428]
[1766589388087,0.9118,2915.5,2914.7,0.03430884]
[1766589388297,0.9118,2915.5,2914.8,0.82731031]
[1766589388459,0.9128,2915.9,2914.9,0.03430649]
[1766589388787,0.001,2915.9,2915.0,7.69506346]
[1766589388987,0.001,2915.9,2915.1,1.15675051]
[1766589389371,0.001,2915.9,2915.2,0.834]
[1766589389695,0.001,2915.9,2915.3,0.03430178]
[1766589389857,0.001,2916.0,2915.3,0.03430178]
[1766589390690,0.001,2915.9,2915.4,3.43006105]
[1766589390895,0.001,2915.9,2915.5,0.03429943]
[1766589391183,0.001,2915.9,2915.6,0.834]
[1766589391759,0.001,2915.9,2915.5,0.03429943]
[1766589391958,0.9721,2915.8,2914.7,3.43081784]
[1766589392169,0.9721,2915.6,2914.8,0.86830767]
[1766589392397,0.9721,2915.4,2914.8,1.29822022]
[1766589392598,0.03433827,2915.3,2914.9,0.834]
[1766589393194,0.03433827,2915.3,2915.0,0.834]
[1766589394389,0.9721,2915.8,2915.1,0.03430414]
[1766589394710,0.001,2915.9,2915.1,3.46462376]
[1766589394879,0.9731,2915.9,2915.2,0.42986238]
[1766589395065,0.9731,2915.9,2915.3,0.03430178]
[1766589395263,0.9731,2915.9,2915.4,0.834]
[1766589398800,0.97,2915.8,2914.8,3.88]
[1766589398991,0.97,2915.8,2914.9,0.835]